Cogmind - Beta 13 X1 @@@ ROGUE MODE // 2023.06.25 @ 00:15:21 Player: Shadow Pussy wanter Result: Destroyed by 81-Z39(R) with Subdweller Machine Gun Performance ------------- Evolutions (0) 0 Regions Visited (3) 600 Robots Destroyed (26) 130 Value Destroyed (680) 680 Prototype IDs (10) 200 Alien Tech Used (0) 0 Bonus (28) 28 TOTAL SCORE: 1638 Bonus ------- Follower Combat Kills 28 Cogmind --------- Core Integrity 0/250 Matter 300/300 Energy 140/160 System Corruption 0% Temperature Cool (0) Movement Treading (260) Ox1 Location -10/Subcaves Parts ------- > --- POWER (1) -------- Light Nuclear Core > --- PROPULSION (2) --- Spiked Treads Subdweller Monowheel > --- UTILITY (2) ------ Scrap Shield > --- WEAPON (2) ------- Beamcaster Subdweller Machine Gun > --- INVENTORY (5) ---- Ion Engine Light Deuterium Engine Light Nuclear Core Powered Cannon Peak State ------------ > --- POWER ------------ Light Nuclear Core > --- PROPULSION ------- Spiked Treads Subdweller Monowheel > --- UTILITY ---------- Scrap Shield > --- WEAPON ----------- Beamcaster Subdweller Machine Gun > --- INVENTORY -------- Ion Engine Light Deuterium Engine Light Nuclear Core Powered Cannon [Rating: 20] Favorites ----------- Power Light Nuclear Core Engine Ion Engine Power Core Light Nuclear Core Propulsion Aluminum Leg Treads Light Treads Leg Aluminum Leg Wheel Subdweller Monowheel Utility Scrap Shield Device Seismic Detector Storage High-capacity Storage Unit Protection Scrap Shield Weapon Subdweller Machine Gun Energy Gun Beamcaster Ballistic Gun Subdweller Machine Gun Special Weapon Mining Laser Build | -11 -10 -10 -10 ------- Run | Jun Mat Min Sub Slots Evolved . | . . . . Power . | . . . . Propulsion . | . . . . Utility . | . . . . Weapon . | . . . . Parts Attached 27 | 7 2 7 11 Power 5 | 1 1 2 1 Engine 3 | 1 1 1 . Core 2 | . . 1 1 Reactor . | . . . . Propulsion 9 | 2 . 2 5 Treads 4 | 2 . . 2 Leg 2 | . . 2 . Wheel 3 | . . . 3 Hover . | . . . . Flight . | . . . . Utility 5 | 2 1 1 1 Device 1 | 1 . . . Storage 2 | 1 1 . . Processor . | . . . . Hackware . | . . . . Protection 2 | . . 1 1 Artifact . | . . . . Weapon 8 | 2 . 2 4 Energy Gun 1 | . . . 1 Energy Cannon . | . . . . Ballistic Gun 6 | 2 . 1 3 Ballistic Cannon . | . . . . Launcher . | . . . . Special Weapon 1 | . . 1 . Impact Weapon . | . . . . Slashing Weapon . | . . . . Piercing Weapon . | . . . . Special Melee Weapon . | . . . . Unidentified Prototypes . | . . . . Parts Lost 2 | . . 1 1 Power . | . . . . Propulsion 2 | . . 1 1 Utility . | . . . . Weapon . | . . . . Highest Loss Streak 1 | . . 1 1 To Critical Strikes . | . . . . Average Slot Usage (%) 89 | . 100 99 84 Engine 2 | . 14 3 . Core 12 | . . 10 13 Treads 7 | . 28 13 3 Leg 13 | . . 14 14 Wheel 7 | . . . 10 Device 3 | . 14 12 . Storage 3 | . 14 14 . Protection 10 | . . 1 14 Energy Gun 3 | . . . 5 Ballistic Gun 23 | . 28 26 22 Naked Turns . | . . . . Heaviest Build 51 | 14 49 51 51 Greatest Support 40 | 40 40 40 40 Greatest Overweight (x) 10 | . 1 2 10 Average Overweight (x) 1 | . . 1 . Largest Inventory Capacity 20 | 8 20 20 20 Average Capacity 9 | 7 18 20 5 Most Carried 15 | 7 12 15 15 Average Carried 7 | 4 9 13 5 Final Capacity 20 | 8 20 20 5 Final Carried 15 | 7 12 15 5 Class Distribution -------------------- 65% | Mutant 34% | Subdweller-Mutant Dominant Class ---------------- Mutant | -10/Materials Mutant | -10/Mines Mutant | -10/Subcaves Resources | -11 -10 -10 -10 ----------- Run | Jun Mat Min Sub Matter Collected 1002 | 286 126 151 439 Remotely . | . . . . Salvage Created 946 | 124 257 255 310 Parts 69 | 3 24 17 25 Haulers Intercepted . | . . . . Recyclers Shooed 1 | . 1 . . Parts Field Recycled . | . . . . Retrieved Matter . | . . . . Parts Self-Destructed 23 | . . . 23 Prevented . | . . . . Kills | -11 -10 -10 -10 ------- Run | Jun Mat Min Sub Combat Hostiles Destroyed 21 | . 7 7 7 Guns 21 | . 7 7 7 Classes Destroyed 8 | 2 4 . 2 Worker 1 | . 1 . . Tunneler 2 | 1 . 1 . Recycler 1 | 1 . . . Watcher 1 | . 1 . . Swarmer 6 | . 3 3 . Grunt 8 | . 4 4 . Sentry 1 | . . . 1 Subdweller 6 | . . . 6 Best Kill Streak 5 | 2 5 3 2 Combat Bots Only 4 | . 4 3 2 Max Kills in Single Turn 2 | 1 1 2 1 Gunslinging . | . . . . Exploded . | . . . . Melee . | . . . . Uniques/NPCs Destroyed . | . . . . Combat | -11 -10 -10 -10 -------- Run | Jun Mat Min Sub Damage Taken 1496 | . 256 332 908 Core 251 | . 62 49 140 Absorbed by Shields . | . . . . Core Remaining (%) 100 | 100 . . . Volleys Fired 153 | 4 29 31 89 Largest 2 | 2 2 2 2 Hottest 105 | 40 40 100 105 Shots Fired 265 | 8 58 55 144 Gun 258 | 8 58 48 144 Cannon . | . . . . Launcher . | . . . . Special 7 | . . 7 . Kinetic 243 | 8 58 48 129 Thermal 22 | . . 7 15 Explosive . | . . . . Electromagnetic . | . . . . Robot Hit Streak 10 | 6 5 6 10 Robot Miss Streak 5 | . 5 1 4 Penetration Max . | . . . . Secondary Targets 1 | . 1 . . Max Gunslinging Chain 1 | . 1 . . Shots Hit Robots 112 | 6 30 34 42 Core Hits 45 | 3 16 14 12 Critical Kills . | . . . . Critical Parts Destroyed . | . . . . Critical Strikes . | . . . . Melee Attacks . | . . . . Impact . | . . . . Slashing . | . . . . Piercing . | . . . . Sneak Attacks . | . . . . Combat Hostiles . | . . . . Follow-up Attacks . | . . . . Damage Inflicted 1369 | 66 320 381 602 Guns 1357 | 66 320 369 602 Cannons . | . . . . Explosions . | . . . . Melee . | . . . . Ramming 12 | . . 12 . Kinetic 1337 | 66 320 369 582 Thermal 20 | . . . 20 Explosive . | . . . . Electromagnetic . | . . . . Impact . | . . . . Slashing . | . . . . Piercing . | . . . . Highest Corruption . | . . . . Average Corruption . | . . . . Corruption Purged . | . . . . Corruption Blocked . | . . . . Overload Shots . | . . . . Overflow Damage . | . . . . Projectiles . | . . . . Explosions . | . . . . Melee . | . . . . Knockbacks . | . . . . Impact . | . . . . Kinetic . | . . . . Secondary . | . . . . Self-Inflicted Damage . | . . . . Shots . | . . . . Rammed 3 | . . 3 . Targets Rammed 5 | . . 5 . Kicked 2 | . . 2 . Crushed . | . . . . Highest Temperature 84 | . 12 84 9 Average Temperature 22 | . 7 25 5 Received Heat Transfer 408 | . 87 150 171 Siege Activations . | . . . . Robots Corrupted . | . . . . Combat Hostiles . | . . . . Parts Fried . | . . . . Impact Corruptions . | . . . . Robots Melted . | . . . . Combat Hostiles . | . . . . Parts Melted 1 | . . . 1 Heat Transferred 37 | . . . 37 Parts Sabotaged . | . . . . Parts Stolen . | . . . . Parts Stripped . | . . . . Power Chain Reactions . | . . . . Missiles Intercepted . | . . . . Alert | -11 -10 -10 -10 ------- Run | Jun Mat Min Sub Peak Influence 245 | 10 233 245 . Initial 90 | . 6 90 . Average 84 | 4 85 92 . Maximum Alert Level 1 | . 1 1 . Low Security (%) 81 | 100 84 79 . Level 1 18 | . 15 20 . Level 2 . | . . . . Level 3 . | . . . . Level 4 . | . . . . Level 5 . | . . . . High Security . | . . . . Max Security . | . . . . Squads Dispatched 1 | . 1 . . Investigation . | . . . . Extermination . | . . . . Reinforcement 1 | . 1 . . Assault . | . . . . Garrison . | . . . . Intercept . | . . . . Searches Triggered . | . . . . Construction Impeded . | . . . . Haulers Reinforced . | . . . . Active Scanning Responses . | . . . . Cargo Convoy Interrupts . | . . . . Stealth | -11 -10 -10 -10 --------- Run | Jun Mat Min Sub Distress Signals 2 | . 2 . . Communications Jammed . | . . . . Distress Signals . | . . . . Times Spotted 49 | . 12 9 28 Peak Tracking Total 9 | . 7 3 9 Tactical Retreats 5 | . 1 2 2 Traps | -11 -10 -10 -10 ------- Run | Jun Mat Min Sub Traps Triggered 3 | . . . 3 Indirectly . | . . . . Trap Hack Attempts . | . . . . Triggered . | . . . . Disarmed . | . . . . Reprogrammed . | . . . . Reused . | . . . . Traps Extracted . | . . . . Installed . | . . . . Triggered . | . . . . Machines | -11 -10 -10 -10 ---------- Run | Jun Mat Min Sub Machines Disabled 1 | . . . 1 Max in Single Turn 1 | . . . 1 Machines Repaired . | . . . . Machines Sabotaged . | . . . . Overloaded Fab Kills . | . . . . Hacking | -11 -10 -10 -10 --------- Run | Jun Mat Min Sub Machines Accessed 4 | . 1 2 1 Terminals 1 | . 1 . . Fabricators . | . . . . Repair Stations . | . . . . Recycling Units . | . . . . Scanalyzers . | . . . . Garrison Access . | . . . . Total Hacks 13 | . 2 2 9 Successful 12 | . 1 2 9 Failed 1 | . 1 . . Catastrophic . | . . . . Database Lockouts . | . . . . Manual 2 | . 2 . . Terminals 2 | . 2 . . Fabricators . | . . . . Repair Stations . | . . . . Recycling Units . | . . . . Scanalyzers . | . . . . Garrison Access . | . . . . Terminal Hacks 11 | . . 2 9 Record 8 | . . . 8 Open Door 2 | . . 2 . Derelict Proto ID Bank 1 | . . . 1 Fabricator Hacks . | . . . . Repair Station Hacks . | . . . . Recycling Unit Hacks . | . . . . Scanalyzer . | . . . . Garrison Access Hacks . | . . . . Unauthorized Hacks 1 | . 1 . . Terminals 1 | . 1 . . Botnet 1 | . 1 . . Fabricators . | . . . . Repair Stations . | . . . . Recycling Units . | . . . . Scanalyzers . | . . . . Garrison Access . | . . . . Data Cores Recovered . | . . . . Used . | . . . . Hacking Detections 1 | . 1 . . Full Trace Events . | . . . . Feedback Events . | . . . . Feedback Blocked . | . . . . Robot Schematics Acquired . | . . . . Robots Built . | . . . . Authchips . | . . . . Time . | . . . . Total Robot Build Rating . | . . . . Part Schematics Acquired . | . . . . Parts Built . | . . . . Authchips . | . . . . Time . | . . . . Total Part Build Rating . | . . . . Parts Repaired . | . . . . Time . | . . . . Parts Recycled . | . . . . Recycled Matter . | . . . . Retrieved Matter . | . . . . Retrieved Components . | . . . . Parts Scanalyzed . | . . . . Part Schematics Acquired . | . . . . Parts Damaged . | . . . . Bothacking | -11 -10 -10 -10 ------------ Run | Jun Mat Min Sub Used RIF Installer . | . . . . Robots Hacked . | . . . . Non-combat . | . . . . Combat . | . . . . Robot Hacks Applied . | . . . . Relay Couplers Released . | . . . . Fabnet Peak Effective % . | . . . . Robots Rewired . | . . . . Allies Hacked . | . . . . Hacks Repelled . | . . . . Allies | -11 -10 -10 -10 -------- Run | Jun Mat Min Sub Total Allies 3 | . . 3 . Largest Group 3 | . . 3 3 Highest-Rated Group 40 | . . 40 40 Highest-Rated Ally 16 | . . 16 16 Total Orders . | . . . . Ally Attacks 41 | . . 11 30 Total Damage 374 | . . 99 275 Kills 5 | . . 3 2 Allies Corrupted . | . . . . Allies Melted . | . . . . Intel | -11 -10 -10 -10 ------- Run | Jun Mat Min Sub Robot Analysis Total . | . . . . Derelict Logs Recovered 3 | . . 1 2 Drone Launches . | . . . . Drone Recoveries . | . . . . Exploration | -11 -10 -10 -10 ------------- Run | Jun Mat Min Sub Turns Passed 5723 | 127 299 1273 4024 Spaces Moved 2848 | 68 95 457 2228 Core 48 | 10 . . 38 Treads 538 | 58 95 213 172 Legs 1230 | . . 244 986 Wheels 1032 | . . . 1032 Hover . | . . . . Flight . | . . . . Fastest Speed 50 | 50 160 240 110 Average Speed 182 | 143 224 251 167 Slowest Speed 550 | 160 240 320 550 Overloaded Moves . | . . . . Propulsion Burnouts . | . . . . Robots Hopped . | . . . . Cave-ins Triggered . | . . . . Exploration Rate (%) 51 | 6 22 82 96 Regions Visited 3 Branch Regions 2 Pre-discovered Areas 2 | . . . 2 Known Exits Taken . | . . . . Unknown Exits Taken 3 | 1 1 1 . Scrap Searched 8 | . . 1 7 Spaces Dug 2 | . . . 2 Terrain Destroyed 4 | . . 2 2 Melee . | . . . . Projectile 4 | . . 2 2 AOE . | . . . . Terrain Rammed . | . . . . Walls Destroyed . | . . . . Machines Disabled . | . . . . Actions | -11 -10 -10 -10 --------- Run | Jun Mat Min Sub Total 3104 | 87 129 511 2377 Wait 28 | 2 1 8 17 Move 2845 | 67 94 456 2228 Hop . | . . . . Pick Up 15 | 7 3 2 3 Fast Attach 15 | 7 . 1 7 Attach 2 | . . 2 . Detach 1 | . . 1 . Swap 10 | . 2 4 4 Drop 16 | . . 1 15 Fire 153 | 4 29 31 89 Melee . | . . . . Ram . | . . . . Kick 2 | . . 2 . Crush 3 | . . 3 . Escape Stasis . | . . . . Rewire . | . . . . Trap . | . . . . Miscellaneous 14 | . . . 14 Route ------- -11/Junkyard -10/Materials (discovered 2 exits: *Min x2) -10/Mines (discovered 3 exits: [*Mat] / [*Exi] / *Sub) -10/Subcaves (discovered 3 exits: [*Mat] / [*Mat] / [*Rec]) History --------- Turn | Location | Event 6 | -11/Junkyard | Discovered new exit (range 16) 128 | -11/Junkyard | Entered Materials 177 | -10/Materials | Discovered new exit (range 7) 238 | -10/Materials | Discovered new exit (range 8) 313 | -10/Materials | Build established: Mutant 427 | -10/Materials | Entered Mines 709 | -10/Mines | Discovered new exit (range 5) 848 | -10/Mines | Excavation squad dispatched 848 | -10/Mines | A large section of the Mines collapsed 1099 | -10/Mines | Assisted by bots powering up and referring to "LRC-V3" 1306 | -10/Mines | Learned 8 Materials zone layouts 1359 | -10/Mines | Found the Drone Emporium 1405 | -10/Mines | Deemed a non-threat by the Exiles lab entrance 1408 | -10/Mines | Discovered new exit (range 5) 1510 | -10/Mines | Met a Derelict who couldn't figure out how to use a Trap Extractor 1690 | -10/Mines | Discovered new exit (range 4) 1700 | -10/Mines | Entered Subcaves 1700 | -10/Subcaves | Accompanied by 3 allies 1881 | -10/Subcaves | Core integrity fell below 50% 1887 | -10/Subcaves | Ambushed by swarm of Subdwellers 1952 | -10/Subcaves | Discovered new exit (range 11) 2010 | -10/Subcaves | A swath of the cavern ceiling suddenly collapsed 2062 | -10/Subcaves | A swath of the cavern ceiling suddenly collapsed 2165 | -10/Subcaves | Shifting Twisted Machinery released Flamer 2166 | -10/Subcaves | Shifting Twisted Machinery released Mak. System Restoration Module 2241 | -10/Subcaves | Discovered new exit (range 10) 2250 | -10/Subcaves | Shifting Twisted Machinery released Sub. Beam Cannon 2276 | -10/Subcaves | Shifting Twisted Machinery released Sub. Monowheel 2919 | -10/Subcaves | Discovered new exit (range 9) 3241 | -10/Subcaves | Shifting Twisted Machinery released Sub. Monowheel 3272 | -10/Subcaves | Shifting Twisted Machinery released Battle Cannon 3434 | -10/Subcaves | Core integrity fell below 20% 3483 | -10/Subcaves | Learned 2 Materials zone layouts 4011 | -10/Subcaves | Disturbed a concealed Subdweller 4058 | -10/Subcaves | Build established: Subdweller-Mutant 4701 | -10/Subcaves | Learned location of Zion (-6) 4701 | -10/Subcaves | Met a Zionite searching for "candidates" 5389 | -10/Subcaves | Visited 4L-MR0's lab 5422 | -10/Subcaves | Found Powered Cannon 5724 | -10/Subcaves | Ambushed by Subdweller buried in earth 5724 | -10/Subcaves | Destroyed by 81-Z39(R) with Subdweller Machine Gun Last Messages --------------- >>Record! "Infernogeddon Engine" There was a rumor. A rumor but no details. I can't build something based on a vague rumor about ending the world in a hellish blaze at the flip of a switch. Also why would anyone want that. >>Record! "Uberlauncher" I hear [REDACTED] exploded during the installation process. I did warn them to fully install it before trying to fire, and something tells me that's where things went wrong. Still I'm glad they didn't listen, that way I'm not culpable for whatever they would've done with it. If we're lucky even some of the others got blasted, too. 05403_ 4L-MR0 mumbles: "I'm surprised some of them are even willing to come in here given their fear of my usual visitors." 05409_ 4L-MR0 mumbles: "Who knows where that last prototype ended up, probably tossed aside somewhere as if it were useless junk..." 05414_ Testing Chamber breached. 05421_ Dropped Lgt. Assault Rifle. 05422_ Dropped EM Pulse Gun. 05422_ Acquired Powered Cannon. 05542_ QC-7E8(u) deconstructs Twisted Machinery. 05693_ ZL-2UF(u) tweaks Twisted Machinery. Map ----- +----------------------------------------------------+ | ???????????## #### ####????????? | | ???????????# #??## ##???????????? | | ???????##### ##??# ##???????????? | | ???????# #??### #???????????? | | ???????# ########## #??????????? | | ???????## ""###??# #??????????? | | ????????# """"" #??# ### #??????????? | | ????????## ### ""##?###?## ####??????????? | | ?????????## ####?## " # # #?## ##?????????????? | | ??????##########?### """ #??####??????????????? | | ?????## #### ###" ##### #????????????????????? | | ????## ## ##" #??????????????????????????? | | ???## #?#"" #??????????????????????????? | | ???# #?##"" ##?????????????????????????? | | ???# ##?# "" #?????????????????????????? | | ???# ### " ##????????????????????????? | | ???## ## " #????????????????????????? | | ????# " #????????????????????????? | | ????# ### " ##????????????????????????? | | ????## #?# " ##?????????????????????????? | | ?????## #?# ##?????????????????????????? | | ??????## #?## ##????????????????????????? | | ??????## #??### #????????????????????????? | | ??????# #????## #####?????????????????????? | | ??????## #?????## # # R #?????????????????????? | | ???????#####??????## ####@ ##????????????????????? | | ???????????????????###??# #????????????????????? | | ????????????????????????#g ##?????????###????###? | | ???????????????????????## ####?##???# ######"## | | ???????????????????????# ## #??## """ # | | ???????????????????????# """ ##### " " | | ???????????????????????# " #### ""#" "" | | ??????????????????????## ""######"## % ## | | ??????????????????????# u " """!% ###### | | ??????????????????????# "" ""## #% #### #????? | | ??????????????????????## ""##########??###????? | | ???????????????????????### ""#??????????????????? | | ?????????????????????????## " #??????????????????? | | ??????????????????????????# ##??????????????????? | | ??????????????????????????# ##??????????????????? | | ??????????????????????????# #??????????????????? | | ??????????????????????????## #??????????????????? | | ??????????????????????????## #??????????????????? | | ??????????????????????????# #??????????????????? | | ??????????????????????????## ##?????????????????? | | ??????????????????????????# #?????????????????? | | ??????????????????????????## #?????????????????? | | ???????????????????????????# ##?????????????????? | | ???????????????????????##### #??????????????????? | | ??????????????????????## #??????????????????? | +----------------------------------------------------+ Best States ------------- Heat Dissipation 25 Energy Generation 14 Energy Capacity 250 Matter Stores 300 Matter Capacity 300 Sight Range 16 Terrain Scan Density 10 Armor Coverage 800 Evasion (%) 50 Recoil Reduction 2 Item Schematics ----------------- None Robot Schematics ------------------ None Fabricated ------------ Nothing Alien Tech Used ----------------- None Achievements -------------- None Challenges ------------ None Game ------ Seed HugeWeaponLauncher Manual? 0 Play Time 00:23:38 Cumulative 142.4 hours Start 2023.06.24 @ 23:55:37 End 2023.06.25 @ 00:15:21 Sessions 1 Manual Loads 0 Difficulty Rogue Special Mode None Game No. 194 Rogue 194 Adventurer 0 Explorer 0 Win Type - Total 2 Types 2/0/0/0/0/0/0/0/0 Lore% 60 Gallery% 67 Achievement% 53 Wizard Run 0 Options --------- ASCII 0 Keyboard 0 Movement Numpad Keybinds 0 Fullscreen 1 Font 18/SmallcapsGlow Map View 76x50 Tactical HUD 1 Map Filters NONE Filters NONE Steam 1 RUN: bc7d15a3-e1e5-4e76-8756-3a0ed05bb200